Cogmind - Beta 17 @@@ ROGUE MODE // 2026.06.29 @ 13:06:49 Player: Lazz Result: Destroyed by Y-45 Defender with Heavy Assault Rifle Performance ------------- Evolutions (2) 1000 Regions Visited (4) 800 Robots Destroyed (69) 345 Value Destroyed (2420) 2420 Prototype IDs (2) 40 Alien Tech Used (0) 0 Bonus (427) 427 TOTAL SCORE: 5032 Bonus ------- High Alert Combat Kills 122 Follower Combat Kills 105 Entered Garrisons 200 Cogmind --------- Core Integrity 0/550 Matter 278/300 Energy 100/100 System Corruption 2% Temperature Cool (9) Movement Core (450) Ox8 Location -8/Garrison Parts ------- > --- POWER (1) -------- (None) > --- PROPULSION (2) --- (None) > --- UTILITY (6) ------ Large Storage Unit Advanced Targeting Computer Improved Weapon Shielding Hacking Suite > --- WEAPON (2) ------- Maul > --- INVENTORY (15) --- Improved Heat Sink Compact Battery (200) Advanced Visual Processing Unit Particle Charger Hacking Suite Hacking Suite Relay Coupler [Hunter] (18) Remote Datajack Remote Datajack Peak State ------------ > --- POWER ------------ Light Nuclear Core > --- PROPULSION ------- Medium Treads Medium Treads > --- UTILITY ---------- Large Storage Unit Machine Analyzer Advanced Targeting Computer Reflective Plating Hacking Suite Hacking Suite > --- WEAPON ----------- Heavy Particle Cannon Improved Light Cannon > --- INVENTORY -------- Light Treads Medium Treads Medium Treads Compact Wheel Improved Heat Sink Particle Charger Improved Weapon Shielding Hacking Suite Hacking Suite Assault Rifle Heavy Assault Rifle Mini Grenade Launcher Remote Datajack Remote Datajack Maul [Rating: 36] Favorites ----------- Power Ion Engine Engine Ion Engine Power Core Light Nuclear Core Propulsion Medium Treads Treads Medium Treads Leg Aluminum Leg Wheel Compact Wheel Utility Hacking Suite Device Seismic Detector Storage Large Storage Unit Processor Machine Analyzer Hackware Hacking Suite Protection Reflective Plating Weapon Heavy Assault Rifle Energy Gun Particle Gun Energy Cannon Heavy Particle Cannon Ballistic Gun Heavy Assault Rifle Ballistic Cannon Improved Light Cannon Launcher Mini Grenade Launcher Special Weapon Mining Laser Impact Weapon Maul Build | -11 -10 -9 -8 -8 ------- Run | Yrd Mat Mat Mat Gar Slots Evolved 4 | . . 2 2 . Power . | . . . . . Propulsion . | . . . . . Utility 4 | . . 2 2 . Weapon . | . . . . . Parts Attached 44 | 8 3 7 12 14 Power 5 | 1 . . 2 2 Engine 3 | 1 . . 1 1 Core 2 | . . . 1 1 Reactor . | . . . . . Propulsion 12 | 2 1 2 2 5 Treads 6 | . . 2 2 2 Leg 5 | 2 1 . . 2 Wheel 1 | . . . . 1 Hover . | . . . . . Flight . | . . . . . Utility 11 | 2 1 2 4 2 Device 1 | 1 . . . . Storage 2 | 1 1 . . . Processor 2 | . . 1 1 . Hackware 2 | . . . 2 . Protection 4 | . . 1 1 2 Artifact . | . . . . . Weapon 16 | 3 1 3 4 5 Energy Gun 4 | . . 1 . 3 Energy Cannon 1 | . . . 1 . Ballistic Gun 7 | 3 . 2 1 1 Ballistic Cannon 1 | . . . 1 . Launcher 1 | . . . . 1 Special Weapon 1 | . 1 . . . Impact Weapon 1 | . . . 1 . Slashing Weapon . | . . . . . Piercing Weapon . | . . . . . Special Melee Weapon . | . . . . . Unidentified Prototypes . | . . . . . Parts Lost 23 | . . 1 3 19 Power 4 | . . . 2 2 Propulsion 7 | . . 1 . 6 Utility 5 | . . . 1 4 Weapon 7 | . . . . 7 Highest Loss Streak 10 | . . 1 1 10 To Critical Strikes . | . . . . . Average Backups 10 | 1 5 8 12 13 Power . | . . . . . Propulsion 2 | . 1 2 3 2 Utility 4 | . . 2 4 6 Weapon 3 | 1 2 4 3 2 Tool/Special . | . . . . . Unused Backups 10 | . . 1 . 9 Power . | . . . . . Propulsion . | . . . . . Utility 7 | . . . . 7 Weapon 1 | . . 1 . . Tool/Special 2 | . . . . 2 Average Slot Usage (%) 94 | . 100 92 97 91 Engine 7 | . 14 11 2 6 Core 2 | . . . 4 1 Treads 12 | . . 10 18 13 Leg 7 | . 28 11 . 2 Device 4 | . 14 11 1 . Storage 10 | . 14 11 9 9 Processor 12 | . . 8 16 17 Hackware 11 | . . . 17 17 Protection 6 | . . 6 9 5 Energy Gun 2 | . . 3 . 5 Ballistic Gun 11 | . 27 17 9 3 Ballistic Cannon 3 | . . . 7 2 Peak Build Rating 36 | 7 8 14 36 36 Average Rating 22 | 5 7 12 28 30 On Entrance 12 | . 7 8 14 34 Avg Prop Armor Cover (%) 5 | . . 5 . . Naked Turns . | . . . . . Heaviest Build 39 | 15 30 35 39 37 Greatest Support 56 | 20 20 40 56 56 Greatest Overweight (x) 8 | 1 1 3 . 8 Average Overweight (x) . | . . . . . Largest Inventory Capacity 15 | 8 15 15 15 15 Average Capacity 14 | 6 11 15 15 15 Most Carried 15 | 3 7 10 15 15 Average Carried 10 | 1 5 8 12 13 Final Capacity 15 | 8 15 15 15 15 Final Carried 15 | 3 7 10 15 9 Class Distribution -------------------- 49% | Scavenger-Mutant 25% | Hacker-Mutant 24% | Mutant Dominant Class ---------------- Mutant | -10/Materials Scavenger-Mutant | -9/Materials Hacker-Mutant | -8/Materials Scavenger-Mutant | -8/Garrison Resources | -11 -10 -9 -8 -8 ----------- Run | Yrd Mat Mat Mat Gar Matter Collected 1557 | 340 134 254 432 397 Remotely . | . . . . . Salvage Created 1882 | 132 198 422 433 697 Parts 111 | 7 11 27 24 42 Haulers Intercepted 1 | . . 1 . . Recyclers Shooed 2 | 1 1 . . . Parts Field Recycled . | . . . . . Retrieved Matter . | . . . . . Parts Self-Destructed . | . . . . . Prevented . | . . . . . Parts Restored . | . . . . . Kills | -11 -10 -9 -8 -8 ------- Run | Yrd Mat Mat Mat Gar Combat Hostiles Destroyed 58 | . 5 11 12 30 Melee 1 | . . . . 1 Guns 27 | . 5 11 3 8 Cannons 14 | . . . 9 5 AOE 15 | . . . . 15 Classes Destroyed 9 | 2 4 3 . . Tunneler 2 | 2 . . . . Hauler 1 | . . 1 . . Recycler 1 | 1 . . . . Mechanic 1 | . . 1 . . Operator 2 | . 2 . . . Watcher 4 | . 1 1 2 . Swarmer 22 | . 3 6 3 10 Grunt 25 | . 2 3 5 15 Sentry 11 | . . 2 4 5 Best Kill Streak 11 | 2 3 4 3 11 Combat Bots Only 11 | . 3 4 3 11 Max Kills in Single Turn 5 | 1 1 2 1 5 Gunslinging 1 | . . 1 . . Exploded 4 | . . . . 4 Melee 1 | . . . . 1 Uniques/NPCs Destroyed . | . . . . . Combat | -11 -10 -9 -8 -8 -------- Run | Yrd Mat Mat Mat Gar Hostile Shots Fired 365 | . 34 48 98 185 Missed 95 | . 8 13 29 45 Hits 270 | . 26 35 69 140 Projectile 270 | . 26 35 69 140 Critical Strikes 7 | . . . . 7 Actively Blocked 2 | . . . . 2 Damage Taken 3696 | . 239 430 817 2210 Core 672 | . 44 76 57 495 Absorbed by Shields . | . . . . . Redirected to Shielding 196 | . . . . 196 Ignored by Resistances 50 | . . . 32 18 Core Remaining (%) 87 | 100 82 81 . . Volleys Fired 159 | 10 27 27 46 49 Largest 2 | 2 2 2 2 2 Hottest 134 | 40 100 100 108 134 Shots Fired 305 | 20 52 53 90 90 Gun 218 | 20 50 52 47 49 Cannon 64 | . . . 43 21 Launcher 20 | . . . . 20 Special 3 | . 2 1 . . Kinetic 230 | 20 50 41 82 37 Thermal 55 | . 2 12 8 33 Explosive 20 | . . . . 20 Electromagnetic . | . . . . . Robot Hit Streak 25 | 5 5 11 25 22 Robot Miss Streak 4 | 2 4 2 3 2 Penetration Max . | . . . . . Secondary Targets 4 | . . 4 . . Max Gunslinging Chain 1 | . . 1 . . Shots Hit Robots 224 | 12 29 38 67 78 Core Hits 117 | 4 12 18 25 58 Critical Kills . | . . . . . Critical Parts Destroyed 2 | . . . . 2 Critical Strikes 7 | . . . 2 5 Burn 1 | . . . . 1 Blast 3 | . . . 2 1 Smash 3 | . . . . 3 Melee Attacks 16 | . . . 1 15 Impact 16 | . . . 1 15 Slashing . | . . . . . Piercing . | . . . . . Sneak Attacks . | . . . . . Combat Hostiles . | . . . . . Follow-up Attacks . | . . . . . Damage Inflicted 5000 | 151 345 606 1192 2706 Guns 2158 | 151 345 574 578 510 Cannons 1006 | . . . 614 392 Explosions 1587 | . . 32 . 1555 Melee 243 | . . . . 243 Ramming 6 | . . . . 6 Kinetic 2450 | 151 345 465 1117 372 Thermal 714 | . . 109 75 530 Explosive 1587 | . . 32 . 1555 Electromagnetic . | . . . . . Impact 243 | . . . . 243 Slashing . | . . . . . Piercing . | . . . . . Highest Corruption 2 | . . . 2 2 Average Corruption 2 | . . . 2 2 Corruption Purged . | . . . . . Corruption Blocked . | . . . . . Effects 23 | . . . 8 15 Message Errors 6 | . . . 1 5 Matter Fused 6 | . . . 4 2 Heat Flow Errors 1 | . . . . 1 Energy Discharges 2 | . . . 1 1 Data Loss (minor) 3 | . . . 2 1 Data Loss (major) 2 | . . . . 2 Misfires 2 | . . . . 2 Alerts 1 | . . . . 1 Overload Shots . | . . . . . Overflow Damage 150 | . . . 2 148 Projectiles 9 | . . . 2 7 Explosions 63 | . . . . 63 Melee 78 | . . . . 78 Knockbacks 4 | . . . 4 . Impact . | . . . . . Kinetic 4 | . . . 4 . Secondary . | . . . . . Self-Inflicted Damage 353 | . . 88 . 265 Shots 12 | . . 1 . 11 Rammed 2 | . . . . 2 Targets Rammed 6 | . . . . 6 Kicked 4 | . . . . 4 Crushed . | . . . . . Highest Temperature 285 | . 40 144 207 285 Average Temperature 65 | . 20 46 58 76 Received Heat Transfer 1203 | . 54 69 279 801 Siege Activations . | . . . . . Martial Activations . | . . . . . Shielding Activations . | . . . . . Robots Disrupted . | . . . . . Combat Hostiles . | . . . . . Robots Corrupted 1 | . . . . 1 Combat Hostiles 1 | . . . . 1 Parts Fried 1 | . . . . 1 Impact Corruptions 2 | . . . . 2 Robots Melted . | . . . . . Combat Hostiles . | . . . . . Parts Melted 2 | . . . . 2 Heat Transferred 1460 | . . 259 111 1090 Parts Sabotaged . | . . . . . Parts Stolen . | . . . . . Parts Stripped . | . . . . . Power Chain Reactions . | . . . . . Alert | -11 -10 -9 -8 -8 ------- Run | Yrd Mat Mat Mat Gar Maximum Alert Level 3 | . . . . 3 Low Security (%) 78 | 100 100 100 100 30 Level 1 1 | . . . . 4 Level 2 16 | . . . . 54 Level 3 3 | . . . . 9 Level 4 . | . . . . . Level 5 . | . . . . . High Security . | . . . . . Max Security . | . . . . . Peak Influence 719 | 5 88 144 93 719 Initial 52 | . . . . 52 Average 156 | . 37 45 18 445 Influence Increases 1762 | 15 171 335 364 877 Destroy 0b10 Robot/C 1220 | . 100 220 240 660 Destroy 0b10 Robot/NC 55 | 15 15 15 10 . Destroy Leader 170 | . 32 54 54 30 Allied During Kill 13 | . . . . 13 Successful Hack 30 | . 22 . 8 . Disable Machine 45 | . . 15 30 . Anti-Garrison Action 100 | . . . . 100 Destroy Structure 114 | . 2 31 7 74 Lose Combat Pursuer 15 | . . . 15 . Influence Decreases 1083 | 15 171 335 283 279 Entered New Map 29 | . . . . 29 Time Decay 611 | 15 171 196 229 . Lost Part 220 | . . 10 20 190 Lost Ally 60 | . . . . 60 Purge Threat 163 | . . 129 34 . Squads Dispatched 3 | . 2 . 1 . Investigation . | . . . . . Extermination . | . . . . . Reinforcement 3 | . 2 . 1 . Assault . | . . . . . Garrison . | . . . . . Intercept . | . . . . . Searches Triggered . | . . . . . Construction Impeded . | . . . . . Haulers Reinforced . | . . . . . Active Scanning Responses . | . . . . . Cargo Convoy Interrupts . | . . . . . Stealth | -11 -10 -9 -8 -8 --------- Run | Yrd Mat Mat Mat Gar Distress Signals 5 | . 1 1 3 . Communications Jammed . | . . . . . Distress Signals . | . . . . . Times Spotted 84 | . 12 14 22 36 Peak Tracking Total 11 | . 3 4 6 11 Tactical Retreats 1 | . . . 1 . Traps | -11 -10 -9 -8 -8 ------- Run | Yrd Mat Mat Mat Gar Traps Triggered 4 | . . . 1 3 Indirectly . | . . . . . Trap Hack Attempts . | . . . . . Triggered . | . . . . . Disarmed . | . . . . . Reprogrammed . | . . . . . Reused . | . . . . . Traps Extracted . | . . . . . Installed . | . . . . . Triggered . | . . . . . Machines | -11 -10 -9 -8 -8 ---------- Run | Yrd Mat Mat Mat Gar Machines Disabled 5 | . . 1 2 2 Max in Single Turn 1 | . . 1 1 1 Garrison Relay 2 | . . . . 2 Machines Repaired . | . . . . . Machines Dismantled . | . . . . . Machines Sabotaged . | . . . . . Overloaded Fab Kills . | . . . . . Hacking | -11 -10 -9 -8 -8 --------- Run | Yrd Mat Mat Mat Gar Machines Accessed 12 | . 2 4 6 . Terminals 11 | . 2 4 5 . Fabricators . | . . . . . Repair Stations . | . . . . . Recycling Units . | . . . . . Scanalyzers . | . . . . . Garrison Access 1 | . . . 1 . Total Hacks 26 | . 2 12 12 . Successful 10 | . 2 3 5 . Failed 16 | . . 9 7 . Catastrophic . | . . . . . Database Lockouts . | . . . . . Manual 21 | . 2 8 11 . Terminals 25 | . 2 12 11 . Fabricators . | . . . . . Repair Stations . | . . . . . Recycling Units . | . . . . . Scanalyzers . | . . . . . Garrison Access 1 | . . . 1 . Terminal Hacks 7 | . 1 3 3 . Part Schematic 1 | . . . 1 . Prototype ID Bank 1 | . . 1 . . Garrison Index 1 | . . . 1 . Unreport Threat 2 | . . 1 1 . Zone Layout 2 | . 1 1 . . Fabricator Hacks . | . . . . . Repair Station Hacks . | . . . . . Recycling Unit Hacks . | . . . . . Scanalyzer . | . . . . . Garrison Access Hacks 1 | . . . 1 . Unlock Access 1 | . . . 1 . Unauthorized Hacks 2 | . 1 . 1 . Terminals 2 | . 1 . 1 . Operators 2 | . 1 . 1 . Fabricators . | . . . . . Repair Stations . | . . . . . Recycling Units . | . . . . . Scanalyzers . | . . . . . Garrison Access . | . . . . . Data Cores Recovered . | . . . . . Used . | . . . . . Hacking Detections 8 | . . 3 5 . Full Trace Events . | . . . . . Feedback Events . | . . . . . Feedback Blocked . | . . . . . Robot Schematics Acquired . | . . . . . Robots Built . | . . . . . Authchips . | . . . . . Time . | . . . . . Total Robot Build Rating . | . . . . . Part Schematics Acquired 1 | . . . 1 . Parts Built . | . . . . . Authchips . | . . . . . Time . | . . . . . Total Part Build Rating . | . . . . . Part Studies Acquired . | . . . . . Parts Repaired . | . . . . . Time . | . . . . . Parts Recycled . | . . . . . Recycled Matter . | . . . . . Retrieved Matter . | . . . . . Retrieved Components . | . . . . . Parts Scanalyzed . | . . . . . Part Schematics Acquired . | . . . . . Parts Damaged . | . . . . . Bothacking | -11 -10 -9 -8 -8 ------------ Run | Yrd Mat Mat Mat Gar Used RIF Installer . | . . . . . Robots Hacked . | . . . . . Non-combat . | . . . . . Combat . | . . . . . Robot Hacks Applied . | . . . . . Relay Couplers Released 10 | . . . . 10 Machine Destruction 10 | . . . . 10 Fabnet Peak Effective % . | . . . . . Robots Rewired 3 | . . . . 3 Allies Hacked . | . . . . . Hacks Repelled . | . . . . . Allies | -11 -10 -9 -8 -8 -------- Run | Yrd Mat Mat Mat Gar Total Allies 3 | . . . . 3 Largest Group 3 | . . . . 3 Highest-Rated Group 48 | . . . . 48 Highest-Rated Ally 16 | . . . . 16 Total Orders . | . . . . . Ally Attacks 23 | . . . . 23 Total Damage 242 | . . . . 242 Kills 3 | . . . . 3 Allies Corrupted . | . . . . . Allies Melted 1 | . . . . 1 Intel | -11 -10 -9 -8 -8 ------- Run | Yrd Mat Mat Mat Gar Active Infowar (turns) 2787 | 27 389 552 956 863 Seismic 1158 | 27 389 552 190 . Machine Analysis 2250 | . . 431 956 863 Robot Analysis Total . | . . . . . Derelict Logs Recovered . | . . . . . Drone Launches . | . . . . . Drone Recoveries . | . . . . . Exploration | -11 -10 -9 -8 -8 ------------- Run | Yrd Mat Mat Mat Gar Turns Passed 2890 | 110 389 552 956 883 Spaces Moved 1263 | 55 192 215 424 377 Core 11 | 8 . . . 3 Treads 890 | . . 140 424 326 Legs 359 | 47 192 75 . 45 Wheels 3 | . . . . 3 Hover . | . . . . . Flight . | . . . . . Fastest Speed 50 | 50 120 160 160 115 Average Speed 163 | 112 147 195 160 165 Slowest Speed 450 | 120 190 330 160 450 Overloaded Moves . | . . . . . Propulsion Burnouts . | . . . . . Robots Hopped . | . . . . . Potential Cave-ins . | . . . . . Cave-ins Triggered . | . . . . . Exploration Rate (%) 31 | 3 34 25 41 54 Regions Visited 4 Branch Regions . Pre-discovered Areas . | . . . . . Known Exits Taken 1 | . . . 1 . Unknown Exits Taken 3 | 1 1 1 . . Scrap Searched . | . . . . . Spaces Dug 7 | . 2 1 3 1 Terrain Destroyed 134 | . 2 44 6 82 Melee 2 | . . . 1 1 Projectile 8 | . 2 1 5 . AOE 124 | . . 43 . 81 Terrain Rammed . | . . . . . Walls Destroyed . | . . . . . Machines Disabled . | . . . . . Actions | -11 -10 -9 -8 -8 --------- Run | Yrd Mat Mat Mat Gar Total 1722 | 79 241 290 609 503 Wait 169 | 5 16 31 105 12 Move 1260 | 54 191 214 424 377 Hop . | . . . . . Pick Up 21 | 2 3 3 11 2 Fast Attach 24 | 7 . 5 4 8 Attach 13 | . . 1 3 9 Detach 3 | . . 1 . 2 Swap 20 | 1 3 4 7 5 Drop 17 | . 1 4 8 4 Fire 159 | 10 27 27 46 49 Melee 16 | . . . 1 15 Ram 2 | . . . . 2 Kick 4 | . . . . 4 Crush . | . . . . . Escape Stasis . | . . . . . Rewire 14 | . . . . 14 Trap . | . . . . . Miscellaneous . | . . . . . Route ------- -11/Scrapyard -10/Materials -9/Materials -8/Materials (discovered 2 exits: [*Fac] / Gar) -8/Garrison (discovered 3 exits: [*Mat x3]) History --------- Turn | Location | Event 9 | -11/Scrapyard | Discovered new exit (range 15) 111 | -11/Scrapyard | Entered Materials 326 | -10/Materials | Build established: Mutant 464 | -10/Materials | Discovered new exit (range 13) 500 | -10/Materials | Entered another Materials area 500 | -9/Materials | Evolved 2 slots: Utility x2 1004 | -9/Materials | Build established: Scavenger-Mutant 1008 | -9/Materials | Discovered new exit (range 17) 1052 | -9/Materials | Entered another Materials area 1052 | -8/Materials | Evolved 2 slots: Utility x2 1559 | -8/Materials | Discovered new exit (range 16) 1807 | -8/Materials | Build established: Hacker-Mutant 2008 | -8/Materials | Identified exit to Garrison 2008 | -8/Materials | Entered Garrison 2048 | -8/Garrison | Triggered checkpoint 2150 | -8/Garrison | Triggered checkpoint 2159 | -8/Garrison | Discovered new exit (range 5) 2276 | -8/Garrison | Triggered checkpoint 2283 | -8/Garrison | Triggered checkpoint 2338 | -8/Garrison | Lost 3 allies 2357 | -8/Garrison | Destroyed 11 combat bots 2366 | -8/Garrison | Triggered checkpoint 2425 | -8/Garrison | Discovered new exit (range 8) 2494 | -8/Garrison | Triggered checkpoint 2498 | -8/Garrison | Garrison Relay disabled 2522 | -8/Garrison | Destroyed 9 combat bots 2527 | -8/Garrison | Build established: Scavenger-Mutant 2656 | -8/Garrison | Discovered new exit (range 13) 2684 | -8/Garrison | Triggered checkpoint 2706 | -8/Garrison | Core integrity fell below 50% 2744 | -8/Garrison | Lost 10 parts (1p4n5w) 2763 | -8/Garrison | Garrison Relay disabled 2878 | -8/Garrison | Core integrity fell below 20% 2891 | -8/Garrison | Destroyed by Y-45 Defender with Heavy Assault Rifle Last Messages --------------- 02839_ Destroyed Heat Sink. 02839_ Y-45 Defender system corrupted by crushing effect. 02842_ Lgt. Nuclear Core destroyed. 02845_ Y-45 Defender suffers critical hit (Smash). 02851_ Y-45 Defender destroyed. 02854_ Acquired 37 matter. 02856_ System corrupted: Substantial component data lost. 02859_ Kicked Y-45 Defender. 02859_ Aluminum Leg destroyed. 02859_ Hacking Suite destroyed. 02861_ Kicked Y-45 Defender. 02868_ Aluminum Leg destroyed. 02869_ Slammed into Y-45 Defender. 02871_ 4FHQCZXBI0G%W:6>CNKQ9N 02871_ Machine Analyzer destroyed. 02873_ Slammed into Y-45 Defender. 02877_ Critical hit (Burn: +37). Map ----- +----------------------------------------------------+ | | | | | | | | | | | | | | | | | ?????????????????????????????????????????????????? | | ?????????????????????????????????????????????????? | | ?????????????????????????????????????????????????? | | ?????????????????????????????????????????????????? | | ?????????????????????????????????????????????????? | | ?????????????????????????????????????????????????? | | ?????????????????????????????????????????????????? | | ?????????????????????????????????????????????????? | | ?????????????????????????????????????????????????? | | ?????????????????????????????????????????????????? | | ?????????????????????????????????????????????????? | | ?????????????????????????????????????????????????? | | ?????????????????????????????????????????????????? | | ?????????????????????????????????????????????????? | | ?????????????????????????????????????????????????? | | ????????????????????#####""####??????????????????? | | ??????????????????###"##T ##?????????????????? | | ??????????????????# !"#?#@ #?????????????????? | | ??????????????????# ! #?# #?????????????????? | | ??????????????????# !"#?# Y ##?????????????????? | | ??????????????????#!#"#?####Y##???????????????#### | | ??????????????????# ###???##Y##???????????????# | | ??????????????????# #?????#/=!#???????????????# | | ??????????????????# #?????#/!!#???????????????# # | | ??????????????????# #?????#/ !#???????????????# # | | ????????????????### ##????#/ #???????????????# # | | ????????????????# ######"^##???????????????# # | | ????????????????# #????????????????# # | | ????????????????# ########????????????????# # | | ???????????????#### ##????????????????????# # | | ???????????????# # #????????????????????# # | | ????????????#+## = # ### #??????????????????# # | | # < ######### [ #???????#####??????# [ | | # ## ! #### #??????## ######## | | # # # # #?#???#### [ | | ?############ ## # # ##?????# ! | | ????????????# #### ####??????# ## ######## | | ????????????# #?#######???????# ## #??????# | | ????????????# #???????????????# ### ##??????# # | | ????????????# #???????????????# #?# #???????# # | | ????????????# #?????????????####### #???????# # | | ????????????# #?????????????# ## #???????# # | +----------------------------------------------------+ Best States ------------- Heat Dissipation 31 Energy Generation 14 Energy Capacity 265 Matter Stores 300 Matter Capacity 300 Sight Range 16 Terrain Scan Density 10 Armor Coverage 150 Resistance: TH 10 Weapon Shielding 66 Evasion (%) 55 Targeting Accuracy 8 Recoil Reduction 2 Offensive Hacking 20 Item Schematics ----------------- Hacking Suite | -8/Materials | Hacked Robot Schematics ------------------ None Fabricated ------------ Nothing Repaired ---------- Nothing Studied --------- None Alien Tech Used ----------------- None Achievements -------------- None Challenges ------------ None Game ------ Seed QuantumRagnarokRefractor Manual? 0 Play Time 00:23:08 Cumulative 220.9 hours Start 2026.06.29 @ 10:11:41 End 2026.06.29 @ 13:06:49 Sessions 2 Manual Loads 0 Difficulty Rogue Special Mode None Game No. 299 Rogue 299 Adventurer 0 Explorer 0 Win Type - Total 3 Types 2/0/0/1/0/0/0/0/0/0 Lore% 76 Gallery% 63 Achievement% 51 Wizard Run 0 Options --------- Layout 2 ASCII 0 Keyboard 0 Movement Mouse Keybinds 0 Fullscreen 1 Font 24/Smallcaps Map View 50x44 Zoom Use 0% Tactical HUD 1 Map Filters NONE Filters NONE Steam 1 RUN: e36dbd31-eaac-4953-bf7e-b347caab3a7a